bitfinex-derivatives/quotes_ETHF0:USTF0_20241007
["timestamp","ask_amount","ask_price","bid_price","bid_amount"]
[1728296713810,0.498,2450.1,2449.2,3.2078]
[1728296713811,0.40831,2449.5,2449.2,3.2078]
[1728296713999,3.2078,2449.8,2449.2,3.2078]
[1728296714207,1.0207,2449.7,2449.2,3.2078]
[1728296714402,0.40834,2449.3,2449.2,3.2078]
[1728296715008,4.49154,2449.3,2449.2,3.2078]
[1728296715214,4.0832,2449.3,2449.2,3.2078]
[1728296715600,4.49154,2449.3,2449.2,3.2078]
[1728296716112,4.0832,2449.3,2448.6,3.2078]
[1728296716301,0.40834,2449.3,2448.9,0.40839]
[1728296716502,0.5075,2449.5,2448.6,3.2078]
[1728296716702,0.40832,2449.4,2449.0,0.40837]
[1728296716903,0.5075,2449.5,2449.1,0.40836]
[1728296716904,0.91581,2449.5,2449.1,0.40836]
[1728296717207,0.40833,2449.4,2448.9,3.2078]
[1728296717406,0.40833,2449.4,2449.0,0.40838]
[1728296717914,0.91581,2449.5,2449.1,0.40836]
[1728296718605,0.5075,2449.5,2449.2,3.2078]
[1728296718808,0.5075,2449.5,2449.3,0.40833]
[1728296719311,0.5075,2449.5,2449.2,3.2078]
[1728296719506,0.5075,2449.5,2449.3,0.40833]
[1728296719912,0.5075,2449.5,2449.2,3.2078]
[1728296720099,0.5075,2449.5,2449.2,3.61614]
[1728296720306,0.5075,2449.5,2449.2,3.2078]
[1728296720708,0.40835,2449.2,2448.9,0.4084]
[1728296721207,1.5283,2449.5,2448.8,3.61621]
[1728296721411,0.5075,2449.5,2448.8,3.2078]
[1728296721611,0.40838,2449.1,2448.8,3.2078]
[1728296721912,0.40839,2449.0,2448.8,3.2078]
[1728296722212,0.5075,2449.5,2448.5,3.2078]
[1728296722213,0.40832,2449.4,2448.5,3.2078]
[1728296722506,0.40832,2449.4,2448.5,3.61627]
[1728296722507,0.40843,2448.8,2448.5,3.61627]
[1728296722703,0.40844,2448.7,2448.5,3.2078]
[1728296722903,4.084,2449.0,2448.2,3.2078]
[1728296723108,0.40848,2448.5,2448.2,3.2078]
[1728296723308,0.40848,2448.5,2448.2,3.61631]
[1728296724107,0.40848,2448.5,2448.2,3.2078]
[1728296724313,0.4085,2448.3,2448.2,3.2078]
[1728296724716,4.4933,2448.3,2448.2,3.2078]
[1728296725807,0.4085,2448.3,2448.2,3.2078]
[1728296726009,4.4933,2448.3,2448.2,3.2078]
[1728296726317,4.4933,2448.3,2447.9,3.2078]
[1728296726318,0.40854,2448.1,2447.9,3.2078]
[1728296726620,1.02124,2448.4,2447.9,3.2078]
[1728296726814,0.40854,2448.1,2447.9,3.2078]
[1728296727015,1.02124,2448.4,2447.9,3.61636]
[1728296727016,0.40852,2448.2,2447.9,3.61636]
[1728296727315,1.02124,2448.4,2447.9,3.2078]
[1728296727617,1.4976,2448.7,2447.9,3.61636]
[1728296727618,0.40853,2448.2,2447.9,3.61636]
[1728296728615,1.02118,2448.5,2447.9,3.2078]
[1728296728817,0.4085,2448.4,2448.2,3.2078]
[1728296729009,0.4085,2448.3,2448.2,3.2078]
[1728296729315,0.4085,2448.4,2448.2,3.2078]
[1728296729509,0.4085,2448.3,2448.2,3.2078]
[1728296730607,0.40855,2448.1,2447.9,3.2078]
[1728296730815,0.40852,2448.2,2448.0,0.40855]
[1728296731417,0.4765,2448.7,2447.9,3.2078]
[1728296731614,1.02114,2448.6,2447.9,3.2078]
[1728296731815,0.40853,2448.2,2448.0,0.40855]
[1728296732005,0.4085,2448.4,2447.9,3.2078]
[1728296732211,0.4765,2448.7,2447.9,3.2078]
[1728296732408,0.40855,2448.0,2447.9,3.2078]
[1728296732917,0.40854,2448.1,2447.9,3.61636]
[1728296733415,0.40849,2448.4,2448.2,0.40851]
[1728296733629,0.40849,2448.4,2448.3,3.2078]
[1728296735817,0.40849,2448.4,2447.9,3.2078]
[1728296735818,0.40855,2448.1,2447.9,3.2078]
[1728296736019,0.40854,2448.1,2447.9,3.61636]
[1728296736611,1.02128,2448.3,2447.9,3.2078]
[1728296736612,0.40855,2448.0,2447.9,3.2078]
[1728296736912,1.02128,2448.3,2447.9,3.61636]
[1728296736913,0.40855,2448.1,2447.9,3.61636]
[1728296737117,0.40855,2448.0,2447.9,3.2078]
[1728296741715,0.40855,2448.0,2447.9,3.61637]
[1728296742325,0.40855,2448.0,2447.9,3.2078]
[1728296743122,4.49335,2448.0,2447.9,3.2078]
[1728296743335,10.49335,2448.0,2447.9,3.2078]
[1728296743524,0.4086,2447.7,2447.6,3.2078]
[1728296743731,3.7128,2447.9,2447.3,3.2078]
[1728296743937,3.7128,2447.9,2447.3,3.61647]
[1728296743938,0.40867,2447.4,2447.3,3.61647]
[1728296744136,0.40867,2447.4,2447.3,3.2078]
[1728296744637,1.02147,2447.8,2447.3,3.2078]
[1728296744839,0.40863,2447.6,2447.3,3.61646]
[1728296745037,1.02147,2447.8,2447.3,3.2078]
[1728296745238,1.02147,2447.8,2447.4,0.40865]
[1728296745529,1.02147,2447.8,2447.3,3.2078]
[1728296745530,0.40861,2447.7,2447.5,0.40863]
[1728296746032,0.505,2447.9,2447.6,3.2078]
[1728296746335,0.4086,2447.7,2447.6,3.2078]
[1728296748334,0.505,2447.9,2447.8,0.40859]
[1728296748533,0.40857,2448.0,2447.6,3.2078]
[1728296748534,0.40857,2448.0,2447.9,0.40857]
[1728296748750,0.40857,2448.0,2447.9,3.61637]
[1728296748943,0.40857,2448.0,2447.9,3.2078]
[1728296750741,0.40857,2448.0,2447.9,3.61637]
[1728296751138,0.40857,2448.0,2447.9,3.2078]
[1728296757746,0.40857,2448.0,2447.3,3.2078]
[1728296757747,1.02147,2447.8,2447.3,3.2078]
[1728296757944,7.2926,2448.0,2447.5,0.40863]
[1728296757945,0.40862,2447.6,2447.5,0.40863]
[1728296758244,0.40862,2447.6,2447.5,4.49423]
[1728296758450,0.40862,2447.6,2447.5,11.03373]
[1728296758949,0.40862,2447.6,2447.5,5.03373]
[1728296759350,0.40862,2447.6,2447.5,4.6251]
[1728296760038,0.40862,2447.6,2447.5,0.5395]
[1728296760442,3.2078,2448.1,2447.4,0.5435]
[1728296760645,0.40864,2447.5,2447.4,0.5435]
[1728296760846,0.40865,2447.4,2447.3,3.2078]
[1728296764747,1.02172,2447.2,2446.9,0.5129]
[1728296764948,1.02172,2447.2,2446.5,1.06720094]
[1728296764949,0.40879,2446.6,2446.5,2.03530094]
[1728296765151,0.40879,2446.6,2446.5,1.62650094]
[1728296765456,0.40878,2446.7,2446.6,0.40878]
[1728296766255,5.49,2447.1,2446.5,4.83430094]
[1728296766448,0.40872,2447.0,2446.8,0.40874]
[1728296766643,0.40873,2447.0,2446.9,0.40873]
[1728296766952,0.40867,2447.3,2447.2,0.40868]
[1728296767249,1.02161,2447.5,2447.1,3.2078]
[1728296767449,1.0988,2447.7,2447.1,3.2078]
[1728296767645,0.40868,2447.3,2447.2,0.40868]
[1728296767846,0.40869,2447.2,2447.1,3.6165]
[1728296768043,1.02161,2447.5,2447.1,3.2078]
[1728296768258,0.40868,2447.3,2447.2,0.40868]
[1728296769259,0.40869,2447.2,2447.1,3.6165]
[1728296770451,0.40865,2447.5,2447.4,0.40864]
[1728296771451,1.58352,2448.0,2447.2,0.5634]
[1728296771649,1.02146,2447.9,2447.5,3.2078]
[1728296771959,0.4086,2447.8,2447.7,0.4086]
[1728296772451,0.24028707,2448.5,2447.6,0.5651]
[1728296772655,5.49,2448.8,2447.8,3.2078]
[1728296772854,0.40857,2447.9,2447.8,3.2078]
[1728296773055,0.4086,2447.7,2447.6,0.5651]
[1728296773249,1.02146,2447.9,2447.5,3.2078]
[1728296773444,0.40862,2447.6,2447.5,3.2078]
[1728296775243,0.40862,2447.6,2447.5,3.61644]
[1728296775454,0.40862,2447.6,2447.5,3.2078]
[1728296780159,1.5836,2447.8,2447.5,3.2078]
[1728296780160,0.5621,2447.8,2447.5,3.2078]
[1728296780358,0.5316,2448.0,2447.5,3.2078]
[1728296780661,0.40862,2447.7,2447.6,0.40862]
[1728296781059,0.40862,2447.6,2447.5,3.2078]
[1728296783158,1.02145,2447.9,2447.6,0.40861]
[1728296783159,0.87694518,2447.9,2447.6,0.40861]
[1728296783459,0.4086,2447.8,2447.6,0.40861]
[1728296783652,2.42996518,2448.0,2447.6,0.40861]
[1728296783653,0.4086,2447.7,2447.6,0.40862]
[1728296783859,0.40858,2447.9,2447.8,0.40859]
[1728296784057,0.40858,2447.9,2447.8,0.40858]
[1728296784459,0.40858,2447.9,2447.7,0.40859]
[1728296784860,0.40858,2447.9,2447.8,0.40859]
[1728296785058,1.54137,2448.1,2447.6,0.5276]
[1728296785059,0.40856,2448.0,2447.6,0.5276]
[1728296785361,0.52,2448.1,2448.0,0.40855]
[1728296785362,0.40854,2448.1,2448.0,0.40855]
[1728296785856,1.8983929,2448.3,2447.8,3.2078]
[1728296785857,1.02128,2448.3,2447.8,3.2078]
[1728296786063,0.40857,2447.9,2447.8,3.61638]
[1728296787059,0.40857,2447.9,2447.8,7.70198]
[1728296787465,0.40857,2447.9,2447.8,7.2934]
[1728296787651,0.40857,2447.9,2447.8,3.2078]
[1728296788257,0.40862,2447.6,2447.5,3.2078]
[1728296789763,1.60317,2447.8,2447.5,7.2934]
[1728296789953,0.40862,2447.7,2447.6,0.40861]
[1728296790352,0.40862,2447.7,2447.5,3.2078]
[1728296790353,1.02138,2448.1,2447.5,3.2078]
[1728296790662,0.4086,2447.7,2447.6,0.98911]
[1728296790963,0.4086,2447.7,2447.6,0.5805]
[1728296791159,0.40862,2447.6,2447.5,3.2078]
[1728296792057,0.40862,2447.6,2447.5,3.61644]
[1728296792654,0.8779341,2448.1,2447.5,3.2078]
[1728296792861,0.40862,2447.7,2447.6,0.40861]
[1728296793467,0.40862,2447.7,2447.5,3.2078]
[1728296793468,0.40862,2447.6,2447.5,3.61642]
[1728296793961,0.40862,2447.6,2447.5,7.70202]
[1728296794361,0.40861,2447.7,2447.6,0.40861]
[1728296794563,0.4086,2447.8,2447.7,0.40859]
[1728296794870,0.4086,2447.8,2447.7,4.49419]
[1728296796965,2.04282,2448.0,2447.5,3.2078]
[1728296796966,4.46,2448.0,2447.5,3.2078]
[1728296797172,0.40862,2447.6,2447.5,3.2078]
[1728296799657,4.86862,2447.6,2447.5,3.2078]
[1728296799857,0.40862,2447.6,2447.5,3.2078]
[1728296800971,0.40862,2447.6,2447.5,3.61644]
[1728296801768,3.61629,2448.4,2447.9,0.40857]
[1728296801968,0.87752636,2448.3,2448.2,0.40852]
[1728296802263,0.5268,2448.7,2448.6,0.40845]
[1728296802772,0.93524,2448.7,2448.5,0.40847]
[1728296802972,0.5268,2448.7,2448.5,0.40847]
[1728296803166,0.93524,2448.7,2448.5,0.40847]
[1728296803665,0.93524,2448.7,2448.3,7.6678]
[1728296803868,0.40841,2448.9,2448.7,0.40843]
[1728296804080,0.40841,2448.9,2448.6,3.2078]
[1728296804261,4.46,2449.0,2448.6,3.2078]
[1728296804467,0.40843,2448.8,2448.6,3.2078]
[1728296804973,1.02099,2449.0,2448.3,3.2078]
[1728296805173,0.5398,2448.7,2448.3,3.61629]
[1728296805560,0.40846,2448.6,2448.4,0.40848]
[1728296806369,0.5398,2448.7,2448.4,0.40848]
[1728296806572,0.5398,2448.7,2448.3,3.2078]
[1728296806772,0.40847,2448.5,2448.4,0.40848]
[1728296807273,0.40846,2448.6,2448.5,0.40847]
[1728296809167,0.40848,2448.5,2448.4,0.40848]
[1728296809680,0.40849,2448.4,2448.3,3.2078]
[1728296811772,0.40849,2448.4,2448.3,3.6163]
[1728296812383,0.40849,2448.4,2448.3,3.2078]
[1728296813271,0.40849,2448.4,2448.3,3.6163]
[1728296813466,0.40849,2448.4,2448.3,3.2078]
[1728296814180,0.40848,2448.5,2448.4,0.40849]
[1728296814378,0.40849,2448.4,2448.3,3.61629]
[1728296814577,0.40848,2448.5,2448.4,0.40849]
[1728296814775,0.40849,2448.4,2448.3,3.2078]
[1728296814969,0.40849,2448.4,2448.3,3.6163]
[1728296815175,0.40848,2448.5,2448.4,0.40848]
[1728296815575,0.40845,2448.7,2448.5,0.40846]
[1728296815780,0.40845,2448.6,2448.5,0.40846]
[1728296816381,1.0211,2448.7,2448.3,3.2078]
[1728296816579,0.40849,2448.4,2448.3,3.6163]
[1728296817483,0.40849,2448.4,2448.3,3.2078]
[1728296819473,0.40849,2448.4,2448.3,3.6163]
[1728296820086,0.40846,2448.6,2448.5,0.40846]
[1728296820285,1.59547,2448.8,2448.3,3.2078]
[1728296820474,0.40849,2448.4,2448.3,3.6163]
[1728296820679,0.40849,2448.4,2448.3,3.2078]
[1728296821681,0.40849,2448.4,2448.3,3.61629]
[1728296822181,0.40848,2448.5,2448.4,0.40848]
[1728296822584,1.59548,2448.8,2448.3,3.2078]
[1728296822773,1.59548,2448.8,2448.5,0.40846]
[1728296822774,0.40846,2448.6,2448.5,0.40846]
[1728296823478,0.40847,2448.5,2448.4,0.40847]
[1728296823680,0.40846,2448.6,2448.5,0.40847]
[1728296824389,0.40847,2448.5,2448.4,0.40848]
[1728296824588,0.40849,2448.4,2448.3,0.97089]
[1728296824783,0.40849,2448.4,2448.3,0.9709]
[1728296826080,1.02115,2448.6,2448.2,3.2078]
[1728296826283,1.02115,2448.6,2448.3,0.4085]
[1728296826284,0.4085,2448.4,2448.3,0.4085]
[1728296830189,4.084,2448.4,2448.0,0.5333]
[1728296830494,0.40854,2448.2,2448.0,0.40855]
[1728296830693,0.40854,2448.2,2448.1,0.40854]
[1728296830995,0.40855,2448.1,2448.0,0.40855]
[1728296832092,1.02131,2448.2,2447.9,3.2078]
[1728296832288,0.40855,2448.0,2447.9,3.61636]
[1728296832990,0.40855,2448.0,2447.9,3.2078]
[1728296833994,8.95335,2448.0,2447.9,3.2078]
[1728296834189,0.4086,2447.7,2447.6,1.1306]
[1728296834391,0.40865,2447.4,2447.3,0.581]
[1728296834699,1.0216,2447.6,2447.3,0.581]
[1728296834700,5.4816,2447.6,2447.3,0.581]
[1728296834888,0.40865,2447.4,2447.3,0.98966]
[1728296835094,0.40865,2447.4,2447.3,0.581]
[1728296835394,0.40865,2447.4,2447.3,4.6674]
[1728296835800,0.40867,2447.3,2447.2,0.6051]
[1728296836192,1.0216,2447.5,2447.2,0.6051]
[1728296836395,1.0216,2447.5,2447.3,0.40865]
[1728296836396,0.40866,2447.4,2447.3,0.40865]
[1728296837091,1.0216,2447.5,2447.2,0.6051]
[1728296837293,0.40867,2447.3,2447.2,0.6051]
[1728296837485,0.40867,2447.3,2447.2,1.01379]
[1728296837686,0.40867,2447.3,2447.2,0.6051]
[1728296837896,0.40869,2447.2,2447.1,3.2078]
[1728296838395,4.86869,2447.2,2447.1,3.2078]
[1728296838695,0.40869,2447.3,2447.1,3.6165]
[1728296839000,0.40867,2447.4,2447.3,0.40866]
[1728296839196,0.40865,2447.5,2447.4,0.40865]
[1728296839399,0.597,2447.7,2447.3,1.02168]
[1728296839587,1.61853,2447.7,2447.4,0.5983]
[1728296839899,0.40864,2447.5,2447.4,1.00695]
[1728296840694,0.40864,2447.5,2447.4,0.5983]
[1728296842194,0.40872,2447.0,2446.9,0.5763]
[1728296842399,0.40872,2447.0,2446.9,0.98503]
[1728296842596,0.40872,2447.0,2446.9,0.5763]
[1728296842798,0.40871,2447.1,2446.9,0.5763]
[1728296842999,0.40872,2447.0,2446.9,0.98503]
[1728296843401,0.40871,2447.1,2447.0,0.40871]
[1728296843595,0.40872,2447.0,2446.9,0.98503]
[1728296844112,0.40869,2447.2,2447.1,0.4087]
[1728296845306,4.46,2447.3,2447.0,0.40871]
[1728296845501,0.40872,2447.0,2446.9,4.19283]
[1728296845695,0.40872,2447.0,2446.9,4.19284]
[1728296846306,0.40872,2447.0,2446.9,3.7841]
[1728296846504,4.46,2447.1,2446.7,0.5674]
[1728296846707,0.40875,2446.8,2446.7,0.97616]
[1728296847203,0.40875,2446.8,2446.7,5.06336]
[1728296847900,0.40874,2447.0,2446.9,0.40872]
[1728296848700,0.40875,2446.9,2446.8,0.40873]
[1728296849104,0.40874,2447.0,2446.9,0.40873]
[1728296850102,4.86874,2447.0,2446.9,0.40873]
[1728296850802,0.40875,2446.9,2446.8,0.40874]
[1728296852000,4.46,2447.0,2446.7,0.5674]
[1728296852201,0.40875,2446.8,2446.7,0.5674]
[1728296852612,0.40875,2446.8,2446.7,5.06337]
[1728296852812,0.40875,2446.8,2446.7,0.97617]
[1728296853903,0.40875,2446.8,2446.7,5.06337]
[1728296854101,0.40875,2446.8,2446.7,0.97617]
[1728296856109,4.46,2446.8,2446.6,3.2078]
[1728296856308,4.46,2446.8,2446.3,4.19]
[1728296856309,0.40882,2446.5,2446.3,1.1548]
[1728296856516,0.40882,2446.4,2446.3,1.56362]
[1728296860810,4.46,2446.5,2446.4,0.40882]
[1728296862223,4.8688,2446.5,2446.4,0.40882]
[1728296863621,4.46,2446.5,2446.4,0.40882]
[1728296864324,0.4088,2446.6,2446.5,0.4088]
[1728296865526,4.86879,2446.7,2446.6,0.40879]
[1728296865729,4.46,2446.7,2446.3,2.17688]
[1728296866025,0.4088,2446.6,2446.5,0.40879]
[1728296869123,0.5858,2447.0,2446.4,3.2078]
[1728296869325,0.5858,2447.0,2446.9,0.40874]
[1728296870220,5.05,2447.2,2446.8,2.18917]
[1728296870530,5.05,2447.2,2447.0,3.2078]
[1728296870723,0.4087,2447.1,2447.0,3.61651]
[1728296874329,5.4587,2447.2,2447.1,0.4087]
[1728296874924,0.4087,2447.1,2447.0,3.6165]
[1728296876029,0.4087,2447.1,2446.9,0.40873]
[1728296876030,0.40872,2447.0,2446.9,0.40873]
[1728296876231,0.40876,2446.8,2446.7,0.40875]
[1728296876726,0.40879,2446.6,2446.5,3.2078]
[1728296876932,4.86879,2446.6,2446.5,3.2078]
[1728296877829,4.46,2446.6,2446.5,3.6166]
[1728296879326,4.86879,2446.6,2446.5,3.2078]
[1728296880635,5.47649,2446.7,2446.5,3.2078]
[1728296880930,5.47649,2446.7,2446.6,0.40879]
[1728296881229,4.86879,2446.7,2446.6,0.40879]
[1728296881531,0.40877,2446.8,2446.7,0.40877]
[1728296882533,4.86875,2446.9,2446.8,0.40875]
[1728296883235,0.40879,2446.7,2446.6,0.40877]
[1728296887652,3.2078,2448.6,2448.1,1.02133]
[1728296887842,0.24405018,2449.3,2448.5,4.46]
[1728296888043,0.40834,2449.3,2449.2,3.2078]
[1728296888252,1.56134,2449.3,2449.2,3.2078]
[1728296888452,5.64454,2449.3,2449.2,3.2078]
[1728296888643,5.2362,2449.3,2449.2,3.2078]
[1728296890243,0.585,2449.3,2449.2,3.2078]
[1728296890448,0.5917,2449.6,2449.3,0.40834]
[1728296890747,0.5917,2449.6,2449.5,3.2078]
[1728296893454,0.40834,2449.3,2448.9,0.4084]
[1728296893757,4.46,2449.4,2448.8,3.2078]
[1728296893947,4.46,2449.4,2448.9,0.4084]
[1728296893948,0.40834,2449.3,2448.9,0.4084]
[1728296894253,4.46,2449.4,2448.9,0.4084]
[1728296894455,0.40834,2449.3,2448.9,0.4084]
[1728296894649,4.46,2449.4,2449.0,0.40838]
[1728296894650,4.86833,2449.4,2449.0,0.40838]
[1728296894954,0.40834,2449.3,2448.9,0.40839]
[1728296896054,4.46,2449.4,2448.8,3.2078]
[1728296896358,0.40836,2449.2,2448.8,3.61621]
[1728296896652,4.46,2449.4,2448.8,3.2078]
[1728296896859,4.46,2449.4,2448.8,3.61621]
[1728296897054,4.46,2449.2,2448.9,0.4084]
[1728296897251,4.86832,2449.4,2449.1,3.61617]
[1728296897753,0.5917,2449.6,2449.2,0.40834]
[1728296897957,0.5917,2449.6,2449.1,3.2078]
[1728296898157,0.5917,2449.6,2449.5,3.2078]
[1728296898755,4.6741,2449.6,2449.5,3.2078]
[1728296898962,0.5917,2449.6,2449.5,3.6161]
[1728296899261,0.5917,2449.6,2449.5,3.2078]
[1728296900059,0.5917,2449.6,2449.5,3.6161]
[1728296901253,0.5917,2449.6,2449.5,3.2078]
[1728296901558,4.86825,2449.9,2449.6,0.40828]
[1728296901755,0.5847,2450.0,2449.5,3.2078]
[1728296901955,0.5847,2450.0,2449.8,0.40825]
[1728296902156,0.40824,2449.9,2449.8,3.2078]
[1728296902357,0.99293,2450.0,2449.8,3.61605]
[1728296902654,0.99293,2450.0,2449.8,3.2078]
[1728296902655,0.99292,2450.0,2449.8,3.2078]
[1728296902857,0.40824,2449.9,2449.8,3.2078]
[1728296903752,0.40822,2450.0,2449.8,8.07604]
[1728296904056,0.40822,2450.0,2449.8,3.61604]
[1728296904958,0.40822,2450.1,2449.9,0.40823]
[1728296905157,5.48044,2450.3,2449.8,3.2078]
[1728296905354,0.40824,2449.9,2449.8,3.2078]
[1728296905658,0.40829,2449.6,2449.5,3.2078]
[1728296906058,0.99886,2449.8,2449.6,0.40828]
[1728296906356,0.99886,2449.8,2449.5,3.2078]
[1728296906357,0.5906,2449.8,2449.5,3.2078]
[1728296906557,0.40828,2449.7,2449.5,3.6161]
[1728296906953,0.5906,2449.8,2449.5,3.2078]
[1728296907263,0.40829,2449.6,2449.5,3.2078]
[1728296907459,1.61125,2449.8,2449.5,3.2078]
[1728296907652,0.40828,2449.7,2449.5,3.61609]
[1728296908061,0.40829,2449.6,2449.5,3.2078]
[1728296912963,0.40829,2449.6,2449.5,3.6161]
[1728296913259,0.40829,2449.6,2449.5,3.2078]
[1728296913859,0.40828,2449.7,2449.5,3.2078]
[1728296914049,0.40829,2449.6,2449.5,3.61609]
[1728296914463,0.40829,2449.6,2449.5,3.2078]
[1728296915457,1.61125,2449.8,2449.5,3.2078]
[1728296915654,0.40827,2449.7,2449.5,3.61609]
[1728296915854,1.61125,2449.8,2449.5,3.2078]
[1728296916055,0.40829,2449.6,2449.5,3.61609]
[1728296916661,0.40829,2449.6,2449.5,3.2078]
[1728296917859,0.40837,2449.1,2449.0,3.2078]
[1728296927071,1.42936,2449.0,2448.7,0.40843]
[1728296927276,0.40843,2448.8,2448.7,0.40843]
[1728296927980,0.40844,2448.7,2448.6,3.61625]
[1728296928176,1.02101,2448.9,2448.6,3.2078]
[1728296928477,0.40841,2448.9,2448.8,0.40841]
[1728296929171,0.40843,2448.8,2448.7,0.40842]
[1728296930068,1.02097,2449.0,2448.6,3.2078]
[1728296930276,0.40842,2448.9,2448.8,0.40841]
[1728296930474,0.40842,2448.9,2448.8,3.61621]
[1728296932178,0.4084,2449.0,2448.9,0.40839]
[1728296932971,1.61329,2449.2,2449.0,0.40837]
[1728296932972,0.40838,2449.1,2449.0,0.40837]
[1728296933377,0.40838,2449.1,2449.0,4.49157]
[1728296934378,0.40836,2449.2,2449.1,0.40836]
[1728296934687,0.40836,2449.2,2449.1,3.61616]
[1728296934880,0.40836,2449.2,2449.1,7.69936]
[1728296940584,0.40834,2449.4,2449.3,0.40832]
[1728296941189,0.40834,2449.4,2449.3,4.49072]
[1728296941580,0.40835,2449.3,2449.1,8.253]
[1728296941779,0.40835,2449.3,2449.2,0.40835]
[1728296942082,0.40835,2449.3,2449.2,4.49155]
[1728296944188,0.40835,2449.3,2449.1,3.61616]
[1728296944384,0.40835,2449.2,2449.1,3.61616]
[1728296946291,0.40835,2449.2,2449.1,3.2078]
[1728296946583,9.53935,2449.2,2449.1,3.2078]
[1728296946792,10.41459392,2449.2,2449.1,3.2078]
[1728296947392,0.4084,2448.9,2448.8,3.2078]
[1728296948091,0.87524392,2449.0,2448.5,3.2078]
[1728296948285,0.40845,2448.7,2448.6,0.40845]
[1728296949289,0.40845,2448.6,2448.5,3.61626]
[1728296949888,0.40845,2448.7,2448.6,0.40844]
[1728296950284,0.40844,2448.8,2448.7,0.40842]
[1728296950482,0.40845,2448.6,2448.5,8.07627]
[1728296950895,0.40845,2448.6,2448.5,12.16027]
[1728296951390,0.40845,2448.6,2448.5,11.7518]
[1728296951782,0.40845,2448.6,2448.5,12.16027]
[1728296954494,0.40845,2448.6,2448.5,11.7518]
[1728296954698,0.40845,2448.6,2448.5,12.16027]
[1728296955799,1.60903,2448.9,2448.5,12.16027]
[1728296955994,1.60903,2448.9,2448.7,3.61622]
[1728296955995,0.40844,2448.8,2448.7,3.61622]
[1728296959195,0.40841,2448.9,2448.8,0.4084]
[1728296964496,0.40841,2448.9,2448.7,3.2078]
[1728296964709,0.40842,2448.8,2448.7,3.61623]
[1728296965804,0.40842,2448.8,2448.7,3.2078]
[1728296966006,0.40842,2448.8,2448.7,3.61624]
[1728296966821,0.40841,2448.9,2448.7,3.2078]
[1728296967024,1.48447567,2449.1,2449.0,0.40839]
[1728296967217,0.40837,2449.1,2449.0,3.61619]
[1728296967925,0.40837,2449.1,2449.0,3.2078]
[1728296970121,0.40844,2448.7,2448.6,8.07624]
[1728296970616,0.40844,2448.7,2448.6,12.16024]
[1728296971017,0.40844,2448.7,2448.6,8.07624]
[1728296971212,0.40844,2448.7,2448.6,8.07625]
[1728296971412,0.40844,2448.7,2448.6,3.61625]
[1728296971618,1.01454,2448.7,2448.6,3.61625]
[1728296972317,1.01454,2448.7,2448.6,3.2078]
[1728296980127,1.01454,2448.7,2448.6,3.61625]
[1728296980532,1.8902212,2448.7,2448.6,3.61625]
[1728296981521,1.01454,2448.7,2448.6,3.61625]
[1728296982537,1.01454,2448.7,2448.6,3.2078]
[1728296982830,0.40847,2448.5,2448.4,1.02258]
[1728296983329,0.40847,2448.5,2448.4,0.6141]
[1728296983530,0.40847,2448.5,2448.4,1.02259]
[1728296988436,0.40847,2448.6,2448.5,0.40845]
[1728296989034,17.7518,2448.6,2447.6,1.0549859]
[1728296989336,5.0661,2448.7,2447.1,0.6278]
[1728296989337,1.02155,2447.7,2447.1,0.6278]
[1728296989551,4.46,2447.2,2447.1,0.6278]
[1728296989753,4.46,2447.7,2447.1,0.6278]
[1728296989933,5.0632,2447.9,2447.5,3.2078]
[1728296990235,5.47178,2447.9,2447.6,0.6166]
[1728296991136,4.46,2447.9,2447.7,0.6072]
[1728296991342,5.0632,2448.3,2447.8,3.2078]
[1728296991643,0.87452733,2448.2,2447.8,3.2078]
[1728296991838,0.40856,2448.0,2447.8,3.2078]
[1728296992639,5.0632,2448.3,2447.8,3.2078]
[1728296992840,0.40857,2447.9,2447.8,3.2078]
[1728297001141,0.40859,2447.8,2447.7,0.6072]
[1728297001934,1.02129,2448.3,2447.7,10.6928]
[1728297002140,1.02131,2448.2,2447.9,7.6678]
[1728297002346,0.40855,2448.0,2447.9,3.2078]
[1728297002742,0.40855,2448.0,2447.9,7.2926]
[1728297003249,0.40855,2448.0,2447.9,3.2078]
[1728297004743,4.46,2448.4,2447.9,3.2078]
[1728297004744,0.40855,2448.1,2447.9,3.2078]
[1728297005457,1.62968,2448.3,2447.9,3.2078]
[1728297005742,0.40855,2448.1,2447.9,3.2078]
[1728297006343,1.62968,2448.3,2447.9,3.2078]
[1728297006344,0.40855,2448.0,2447.9,3.2078]
[1728297008947,1.62968,2448.3,2447.9,3.2078]
[1728297009244,0.40854,2448.1,2447.9,3.61637]
[1728297009442,0.40853,2448.2,2447.9,3.61637]
[1728297009749,0.40853,2448.2,2448.0,0.40855]
[1728297009953,0.40853,2448.2,2447.9,3.2078]
[1728297010449,0.40853,2448.2,2448.0,0.40855]
[1728297010840,0.40853,2448.2,2448.1,0.6164]
[1728297011046,1.02123,2448.4,2448.1,0.6164]
[1728297011351,0.40848,2448.5,2448.2,3.2078]
[1728297011650,0.40848,2448.5,2448.2,3.7779]
[1728297011651,0.4085,2448.3,2448.2,3.7779]
[1728297011845,1.02119,2448.5,2448.2,3.2078]
[1728297012049,0.40852,2448.2,2448.1,0.6164]
[1728297014550,0.40855,2448.1,2447.9,0.5701]
[1728297014753,0.40855,2448.1,2447.9,0.97866]
[1728297015543,1.42983,2448.2,2447.9,0.5701]